[Event "Titled Tuesday Blitz April 18 Late 2023"]
[White "Bazeev, German"]
[Black "Ansh M Shah"]
[WhiteFideId "24119350"]
[BlackFideId "25033379"]
[WhiteElo "2466"]
[BlackElo "2084"]
[Result "1-0"]
[Round "01"]
[TimeControl "180+2"]
[Date "2023.04.18"]
[WhiteClock "0:00:36"]
[BlackClock "0:00:38"]

1. c4 {[%clk 0:03:00]}  Nf6 {[%clk 0:02:58]} 2. Nc3 {[%clk 0:03:00]}  e6 {[%clk 0:02:58]} 3. e4 {[%clk 0:02:59]}  d5 {[%clk 0:02:58]} 4. cxd5 {[%clk 0:03:00]}  exd5 {[%clk 0:02:59]} 5. e5 {[%clk 0:03:00]}  d4 {[%clk 0:02:59]} 6. exf6 {[%clk 0:02:53]}  dxc3 {[%clk 0:03:00]} 7. fxg7 {[%clk 0:02:53]}  cxd2+ {[%clk 0:02:59]} 8. Bxd2 {[%clk 0:02:50]}  Bxg7 {[%clk 0:02:59]} 9. Bc4 {[%clk 0:02:50]}  O-O {[%clk 0:02:58]} 10. Ne2 {[%clk 0:02:50]}  Bxb2 {[%clk 0:02:55]} 11. Rb1 {[%clk 0:02:45]}  Bg7 {[%clk 0:02:55]} 12. O-O {[%clk 0:02:43]}  b6 {[%clk 0:02:55]} 13. Rb3 {[%clk 0:02:39]}  Ba6 {[%clk 0:02:53]} 14. Bxa6 {[%clk 0:02:31]}  Nxa6 {[%clk 0:02:54]} 15. Rg3 {[%clk 0:02:31]}  Kh8 {[%clk 0:02:49]} 16. Qc2 {[%clk 0:02:26]}  Nc5 {[%clk 0:02:39]} 17. Nf4 {[%clk 0:02:20]}  Qd6 {[%clk 0:02:23]} 18. Bc3 {[%clk 0:02:02]}  Bxc3 {[%clk 0:02:18]} 19. Qxc3+ {[%clk 0:02:03]}  f6 {[%clk 0:02:18]} 20. Qf3 {[%clk 0:01:58]}  Rg8 {[%clk 0:02:11]} 21. Rxg8+ {[%clk 0:01:54]}  Rxg8 {[%clk 0:02:11]} 22. Rd1 {[%clk 0:01:52]}  Qe5 {[%clk 0:02:00]} 23. g3 {[%clk 0:01:49]}  Qe4 {[%clk 0:01:32]} 24. Qxe4 {[%clk 0:01:11]}  Nxe4 {[%clk 0:01:33]} 25. Rd7 {[%clk 0:01:11]}  Rc8 {[%clk 0:01:16]} 26. f3 {[%clk 0:01:00]}  Ng5 {[%clk 0:01:16]} 27. Kf2 {[%clk 0:00:50]}  c5 {[%clk 0:01:14]} 28. h4 {[%clk 0:00:46]}  c4 {[%clk 0:00:56]} 29. hxg5 {[%clk 0:00:45]}  c3 {[%clk 0:00:55]} 30. Nd5 {[%clk 0:00:39]}  Kg8 {[%clk 0:00:37]} 31. Nxf6+ {[%clk 0:00:36]}  Kf8 {[%clk 0:00:38]} 32. Nxh7+ {[%clk 0:00:37]}  Ke8 {[%clk 0:00:37]} 33. Nf6+ {[%clk 0:00:37]}  Kf8 {[%clk 0:00:38]} 34. g6 {[%clk 0:00:36]} 1-0


[Site "https://www.chess.com"]

[Event "Titled Tuesday Blitz April 18 Late 2023"]
[White "Jodorcovsky Werjivker, Paulo"]
[Black "Begmuratov, Alisher"]
[WhiteFideId "3700305"]
[BlackFideId "14203367"]
[WhiteElo "2120"]
[BlackElo "2387"]
[Result "0-1"]
[Round "01"]
[TimeControl "180+2"]
[Date "2023.04.18"]
[WhiteClock "0:00:16"]
[BlackClock "0:01:11"]

1. e4 {[%clk 0:02:55]}  c6 {[%clk 0:02:59]} 2. d4 {[%clk 0:02:54]}  d5 {[%clk 0:03:00]} 3. exd5 {[%clk 0:02:54]}  cxd5 {[%clk 0:03:00]} 4. Bd3 {[%clk 0:02:55]}  Nc6 {[%clk 0:03:00]} 5. c3 {[%clk 0:02:56]}  Nf6 {[%clk 0:02:59]} 6. h3 {[%clk 0:02:54]}  e5 {[%clk 0:02:59]} 7. dxe5 {[%clk 0:02:42]}  Nxe5 {[%clk 0:03:00]} 8. Nf3 {[%clk 0:02:41]}  Nxd3+ {[%clk 0:02:59]} 9. Qxd3 {[%clk 0:02:42]}  Be7 {[%clk 0:02:59]} 10. Be3 {[%clk 0:02:42]}  O-O {[%clk 0:02:59]} 11. Nbd2 {[%clk 0:02:42]}  Be6 {[%clk 0:02:54]} 12. O-O {[%clk 0:02:42]}  a6 {[%clk 0:02:53]} 13. a4 {[%clk 0:02:40]}  Qd7 {[%clk 0:02:52]} 14. Nb3 {[%clk 0:02:40]}  Rae8 {[%clk 0:02:46]} 15. Nc5 {[%clk 0:02:37]}  Qc6 {[%clk 0:02:43]} 16. Ne5 {[%clk 0:02:35]}  Qc8 {[%clk 0:02:41]} 17. Nb3 {[%clk 0:01:52]}  Bd6 {[%clk 0:02:39]} 18. Nf3 {[%clk 0:01:37]}  Bxh3 {[%clk 0:02:38]} 19. gxh3 {[%clk 0:01:30]}  Qxh3 {[%clk 0:02:39]} 20. Bc5 {[%clk 0:01:27]}  Bh2+ {[%clk 0:02:28]} 21. Kh1 {[%clk 0:01:22]}  Bc7+ {[%clk 0:02:17]} 22. Kg1 {[%clk 0:01:21]}  Re4 {[%clk 0:02:15]} 23. Ne5 {[%clk 0:00:57]}  Rg4+ {[%clk 0:01:31]} 24. Nxg4 {[%clk 0:00:21]}  Qxd3 {[%clk 0:01:32]} 25. Nxf6+ {[%clk 0:00:21]}  gxf6 {[%clk 0:01:32]} 26. Bxf8 {[%clk 0:00:21]}  Qh3 {[%clk 0:01:14]} 27. f4 {[%clk 0:00:20]}  Qg3+ {[%clk 0:01:14]} 28. Kh1 {[%clk 0:00:20]}  Kxf8 {[%clk 0:01:14]} 29. Nd4 {[%clk 0:00:15]}  Bxf4 {[%clk 0:01:12]} 30. Nf3 {[%clk 0:00:16]}  Qh3+ {[%clk 0:01:11]} 31. Kg1 {[%clk 0:00:16]}  Be3+ {[%clk 0:01:11]} 0-1


[Site "https://www.chess.com"]

[Event "Titled Tuesday Blitz April 18 Late 2023"]
[White "EsmeraldasAnderson03"]
[Black "Iliaguev, Nisim"]
[BlackFideId "2817276"]
[WhiteElo "2359"]
[BlackElo "2241"]
[Result "1-0"]
[Round "01"]
[TimeControl "180+2"]
[Date "2023.04.18"]
[WhiteClock "0:00:19"]
[BlackClock "0:00:15"]

1. d4 {[%clk 0:02:59]}  Nf6 {[%clk 0:03:00]} 2. c4 {[%clk 0:02:59]}  e6 {[%clk 0:02:59]} 3. Nf3 {[%clk 0:02:58]}  Bb4+ {[%clk 0:03:00]} 4. Nbd2 {[%clk 0:02:53]}  O-O {[%clk 0:03:00]} 5. e3 {[%clk 0:02:53]}  c5 {[%clk 0:03:00]} 6. Be2 {[%clk 0:02:54]}  cxd4 {[%clk 0:03:00]} 7. exd4 {[%clk 0:02:55]}  d5 {[%clk 0:03:01]} 8. O-O {[%clk 0:02:55]}  Nc6 {[%clk 0:03:01]} 9. a3 {[%clk 0:02:54]}  Be7 {[%clk 0:03:01]} 10. c5 {[%clk 0:02:53]}  b6 {[%clk 0:02:58]} 11. b4 {[%clk 0:02:53]}  bxc5 {[%clk 0:02:58]} 12. dxc5 {[%clk 0:02:53]}  Ne4 {[%clk 0:02:48]} 13. Bb2 {[%clk 0:02:49]}  Bf6 {[%clk 0:02:44]} 14. Bxf6 {[%clk 0:02:37]}  Nxf6 {[%clk 0:02:42]} 15. b5 {[%clk 0:02:30]}  Ne7 {[%clk 0:02:42]} 16. a4 {[%clk 0:02:19]}  Qc7 {[%clk 0:02:42]} 17. Qc2 {[%clk 0:02:13]}  e5 {[%clk 0:02:39]} 18. a5 {[%clk 0:02:05]}  Bf5 {[%clk 0:02:37]} 19. Qb2 {[%clk 0:01:57]}  e4 {[%clk 0:02:29]} 20. Nd4 {[%clk 0:01:41]}  Qxc5 {[%clk 0:02:28]} 21. Rfc1 {[%clk 0:01:41]}  Qd6 {[%clk 0:02:27]} 22. Nxf5 {[%clk 0:01:36]}  Nxf5 {[%clk 0:02:28]} 23. Rc6 {[%clk 0:01:36]}  Qf4 {[%clk 0:02:17]} 24. g3 {[%clk 0:01:23]}  Qg5 {[%clk 0:02:10]} 25. Nb3 {[%clk 0:01:15]}  h5 {[%clk 0:01:53]} 26. Nd4 {[%clk 0:01:11]}  h4 {[%clk 0:01:49]} 27. Nxf5 {[%clk 0:01:07]}  Qxf5 {[%clk 0:01:50]} 28. Qd4 {[%clk 0:01:06]}  hxg3 {[%clk 0:01:48]} 29. hxg3 {[%clk 0:01:06]}  Rfd8 {[%clk 0:01:34]} 30. Rc7 {[%clk 0:01:02]}  e3 {[%clk 0:01:22]} 31. Qxe3 {[%clk 0:00:57]}  d4 {[%clk 0:01:22]} 32. Qd3 {[%clk 0:00:46]}  Qe5 {[%clk 0:01:16]} 33. Rac1 {[%clk 0:00:40]}  Nd5 {[%clk 0:01:14]} 34. R7c5 {[%clk 0:00:39]}  Qf6 {[%clk 0:00:54]} 35. Bf3 {[%clk 0:00:36]}  Nb4 {[%clk 0:00:53]} 36. Qb3 {[%clk 0:00:37]}  Rab8 {[%clk 0:00:53]} 37. Kg2 {[%clk 0:00:35]}  d3 {[%clk 0:00:34]} 38. Qxb4 {[%clk 0:00:34]}  d2 {[%clk 0:00:35]} 39. Rd1 {[%clk 0:00:34]}  Rd4 {[%clk 0:00:34]} 40. Qc3 {[%clk 0:00:32]}  Rbd8 {[%clk 0:00:34]} 41. Rc8 {[%clk 0:00:29]}  g6 {[%clk 0:00:28]} 42. Rxd8+ {[%clk 0:00:27]}  Qxd8 {[%clk 0:00:29]} 43. a6 {[%clk 0:00:20]}  Qd6 {[%clk 0:00:29]} 44. Qc6 {[%clk 0:00:19]}  Qe7 {[%clk 0:00:23]} 45. b6 {[%clk 0:00:17]}  axb6 {[%clk 0:00:20]} 46. Qb7 {[%clk 0:00:18]}  Rd7 {[%clk 0:00:18]} 47. Qxb6 {[%clk 0:00:18]}  Rd6 {[%clk 0:00:17]} 48. Qb8+ {[%clk 0:00:18]}  Kg7 {[%clk 0:00:17]} 49. a7 {[%clk 0:00:18]}  Rd8 {[%clk 0:00:16]} 50. Qb2+ {[%clk 0:00:19]}  f6 {[%clk 0:00:15]} 51. a8=Q {[%clk 0:00:19]} 1-0


[Site "https://www.chess.com"]

[Event "Titled Tuesday Blitz April 18 Late 2023"]
[White "Brodowski, Piotr"]
[Black "merinasian"]
[WhiteFideId "1124480"]
[WhiteElo "2351"]
[BlackElo "2357"]
[Result "1-0"]
[Round "01"]
[TimeControl "180+2"]
[Date "2023.04.18"]
[WhiteClock "0:00:51"]
[BlackClock "0:00:29"]

1. Nf3 {[%clk 0:02:59]}  Nf6 {[%clk 0:02:59]} 2. c4 {[%clk 0:02:58]}  e6 {[%clk 0:02:55]} 3. Nc3 {[%clk 0:02:53]}  b6 {[%clk 0:02:49]} 4. g3 {[%clk 0:02:50]}  Bb7 {[%clk 0:02:49]} 5. Bg2 {[%clk 0:02:50]}  Bb4 {[%clk 0:02:37]} 6. O-O {[%clk 0:02:47]}  O-O {[%clk 0:02:34]} 7. Qb3 {[%clk 0:02:46]}  a5 {[%clk 0:02:21]} 8. a3 {[%clk 0:02:46]}  Bxc3 {[%clk 0:02:16]} 9. Qxc3 {[%clk 0:02:46]}  a4 {[%clk 0:02:15]} 10. d3 {[%clk 0:02:45]}  d6 {[%clk 0:02:14]} 11. b3 {[%clk 0:02:45]}  axb3 {[%clk 0:02:12]} 12. Qxb3 {[%clk 0:02:45]}  Nbd7 {[%clk 0:02:13]} 13. Bb2 {[%clk 0:02:46]}  Nc5 {[%clk 0:02:12]} 14. Qc2 {[%clk 0:02:46]}  Na4 {[%clk 0:02:07]} 15. Bc1 {[%clk 0:02:36]}  Qe7 {[%clk 0:02:01]} 16. e4 {[%clk 0:02:36]}  Nd7 {[%clk 0:01:30]} 17. Bg5 {[%clk 0:02:30]}  f6 {[%clk 0:01:29]} 18. Be3 {[%clk 0:02:29]}  e5 {[%clk 0:01:26]} 19. Nh4 {[%clk 0:02:27]}  Ndc5 {[%clk 0:01:25]} 20. f4 {[%clk 0:02:24]}  Ne6 {[%clk 0:01:24]} 21. Nf5 {[%clk 0:02:18]}  Qe8 {[%clk 0:01:24]} 22. Bh3 {[%clk 0:02:10]}  Nac5 {[%clk 0:01:23]} 23. Ra2 {[%clk 0:01:57]}  Kh8 {[%clk 0:01:23]} 24. Qd1 {[%clk 0:01:56]}  g6 {[%clk 0:01:16]} 25. Nh4 {[%clk 0:01:54]}  Nd4 {[%clk 0:01:16]} 26. Bc1 {[%clk 0:01:06]}  Bc8 {[%clk 0:01:16]} 27. Bg2 {[%clk 0:01:03]}  Bd7 {[%clk 0:01:07]} 28. Raf2 {[%clk 0:01:03]}  Qe7 {[%clk 0:01:04]} 29. fxe5 {[%clk 0:01:00]}  fxe5 {[%clk 0:01:04]} 30. Bh6 {[%clk 0:00:59]}  Rxf2 {[%clk 0:01:01]} 31. Rxf2 {[%clk 0:01:00]}  Nce6 {[%clk 0:00:57]} 32. Qf1 {[%clk 0:00:57]}  Be8 {[%clk 0:00:44]} 33. Bh3 {[%clk 0:00:57]}  Rxa3 {[%clk 0:00:40]} 34. Rf6 {[%clk 0:00:57]}  g5 {[%clk 0:00:33]} 35. Bxe6 {[%clk 0:00:52]}  Nxe6 {[%clk 0:00:32]} 36. Rxe6 {[%clk 0:00:51]}  Qxe6 {[%clk 0:00:29]} 37. Qf8+ {[%clk 0:00:51]}  Qg8 {[%clk 0:00:29]} 38. Bg7# {[%clk 0:00:51]} 1-0


[Site "https://www.chess.com"]

[Event "Titled Tuesday Blitz April 18 Late 2023"]
[White "Buchenau, Frank"]
[Black "Abdyzhapar, Asylbek"]
[WhiteFideId "4604350"]
[BlackFideId "13800337"]
[WhiteElo "2157"]
[BlackElo "2323"]
[Result "1-0"]
[Round "01"]
[TimeControl "180+2"]
[Date "2023.04.18"]
[WhiteClock "0:00:21"]
[BlackClock "0:00:34"]

1. e4 {[%clk 0:02:58]}  c6 {[%clk 0:02:59]} 2. Nf3 {[%clk 0:02:56]}  d5 {[%clk 0:02:59]} 3. Nc3 {[%clk 0:02:57]}  Nf6 {[%clk 0:02:59]} 4. e5 {[%clk 0:02:56]}  Ne4 {[%clk 0:02:57]} 5. Ne2 {[%clk 0:02:56]}  Qb6 {[%clk 0:02:57]} 6. d4 {[%clk 0:02:55]}  c5 {[%clk 0:02:56]} 7. dxc5 {[%clk 0:02:51]}  Qxc5 {[%clk 0:02:56]} 8. Ned4 {[%clk 0:02:23]}  Bg4 {[%clk 0:02:42]} 9. Bb5+ {[%clk 0:02:19]}  Nc6 {[%clk 0:02:41]} 10. O-O {[%clk 0:02:15]}  Bxf3 {[%clk 0:02:39]} 11. Bxc6+ {[%clk 0:02:08]}  bxc6 {[%clk 0:02:38]} 12. gxf3 {[%clk 0:02:02]}  Nf6 {[%clk 0:02:20]} 13. exf6 {[%clk 0:02:02]}  gxf6 {[%clk 0:02:20]} 14. Re1 {[%clk 0:01:56]}  e6 {[%clk 0:02:17]} 15. Qd3 {[%clk 0:01:42]}  Qb6 {[%clk 0:02:01]} 16. Nxe6 {[%clk 0:01:36]}  fxe6 {[%clk 0:02:00]} 17. Rxe6+ {[%clk 0:01:34]}  Be7 {[%clk 0:02:00]} 18. Be3 {[%clk 0:01:24]}  Qxb2 {[%clk 0:01:35]} 19. Bd4 {[%clk 0:01:22]}  Qb4 {[%clk 0:01:19]} 20. Bxf6 {[%clk 0:01:16]}  Rg8+ {[%clk 0:01:06]} 21. Kh1 {[%clk 0:01:16]}  O-O-O {[%clk 0:00:59]} 22. Bxe7 {[%clk 0:01:08]}  Qf4 {[%clk 0:00:51]} 23. Rxc6+ {[%clk 0:00:46]}  Kb8 {[%clk 0:00:49]} 24. Rb1+ {[%clk 0:00:32]}  Ka8 {[%clk 0:00:48]} 25. Bxd8 {[%clk 0:00:29]}  Rxd8 {[%clk 0:00:49]} 26. Qxd5 {[%clk 0:00:22]}  Rxd5 {[%clk 0:00:36]} 27. Rc8+ {[%clk 0:00:21]}  Qb8 {[%clk 0:00:34]} 28. Rcxb8# {[%clk 0:00:21]} 1-0


[Site "https://www.chess.com"]

[Event "Titled Tuesday Blitz April 18 Late 2023"]
[White "Kosteniuk, Alexandra"]
[Black "Schuster, Karsten"]
[WhiteFideId "4128125"]
[BlackFideId "4611071"]
[WhiteElo "2453"]
[BlackElo "2294"]
[Result "1-0"]
[Round "01"]
[TimeControl "180+2"]
[Date "2023.04.18"]
[WhiteClock "0:00:25"]
[BlackClock "0:00:41"]

1. d4 {[%clk 0:03:00]}  d5 {[%clk 0:02:59]} 2. Nf3 {[%clk 0:02:59]}  Nf6 {[%clk 0:02:58]} 3. c4 {[%clk 0:03:00]}  c6 {[%clk 0:02:59]} 4. Nc3 {[%clk 0:02:58]}  a6 {[%clk 0:02:59]} 5. cxd5 {[%clk 0:02:55]}  cxd5 {[%clk 0:02:59]} 6. Bf4 {[%clk 0:02:54]}  Nc6 {[%clk 0:02:59]} 7. Rc1 {[%clk 0:02:52]}  Bg4 {[%clk 0:02:59]} 8. Ne5 {[%clk 0:02:49]}  Bd7 {[%clk 0:02:59]} 9. e3 {[%clk 0:02:47]}  e6 {[%clk 0:02:58]} 10. Bd3 {[%clk 0:02:45]}  Be7 {[%clk 0:02:57]} 11. O-O {[%clk 0:02:43]}  O-O {[%clk 0:02:57]} 12. Bg3 {[%clk 0:02:41]}  Rc8 {[%clk 0:02:54]} 13. f4 {[%clk 0:02:41]}  b5 {[%clk 0:02:51]} 14. Bb1 {[%clk 0:02:38]}  g6 {[%clk 0:02:48]} 15. Bf2 {[%clk 0:02:17]}  Na5 {[%clk 0:02:43]} 16. g4 {[%clk 0:02:06]}  b4 {[%clk 0:02:43]} 17. Ne2 {[%clk 0:02:06]}  Rxc1 {[%clk 0:02:35]} 18. Nxc1 {[%clk 0:02:06]}  Bb5 {[%clk 0:02:33]} 19. Re1 {[%clk 0:02:06]}  Nc4 {[%clk 0:02:32]} 20. Ncd3 {[%clk 0:02:05]}  Ne4 {[%clk 0:02:29]} 21. Bg3 {[%clk 0:01:57]}  Bh4 {[%clk 0:02:22]} 22. g5 {[%clk 0:01:41]}  Bxg3 {[%clk 0:02:18]} 23. hxg3 {[%clk 0:01:41]}  Nxg3 {[%clk 0:02:18]} 24. Nxb4 {[%clk 0:01:32]}  Nxe5 {[%clk 0:02:15]} 25. dxe5 {[%clk 0:01:32]}  Nf5 {[%clk 0:02:00]} 26. Kf2 {[%clk 0:01:30]}  h5 {[%clk 0:01:55]} 27. Bxf5 {[%clk 0:01:28]}  exf5 {[%clk 0:01:55]} 28. Nxd5 {[%clk 0:01:27]}  Qa8 {[%clk 0:01:36]} 29. Nf6+ {[%clk 0:01:24]}  Kg7 {[%clk 0:01:36]} 30. Qf3 {[%clk 0:01:17]}  Bc6 {[%clk 0:01:35]} 31. Qe2 {[%clk 0:01:09]}  Rh8 {[%clk 0:01:25]} 32. e6 {[%clk 0:00:59]}  Bh1 {[%clk 0:01:21]} 33. Kg1 {[%clk 0:00:57]}  fxe6 {[%clk 0:01:14]} 34. Rc1 {[%clk 0:00:54]}  Rf8 {[%clk 0:01:10]} 35. Rc7+ {[%clk 0:00:42]}  Rf7 {[%clk 0:01:10]} 36. Qc2 {[%clk 0:00:42]}  Qf3 {[%clk 0:00:41]} 37. Rxf7+ {[%clk 0:00:25]}  Kxf7 {[%clk 0:00:41]} 38. Qc7+ {[%clk 0:00:25]}  Kf8 {[%clk 0:00:42]} 39. Qd8+ {[%clk 0:00:25]}  Kf7 {[%clk 0:00:41]} 40. Qe8+ {[%clk 0:00:25]}  Kg7 {[%clk 0:00:41]} 41. Qg8# {[%clk 0:00:25]} 1-0


[Site "https://www.chess.com"]

[Event "Titled Tuesday Blitz April 18 Late 2023"]
[White "mohsengabr2002"]
[Black "Manukyan, Sargis A."]
[BlackFideId "13303970"]
[WhiteElo "2353"]
[BlackElo "2187"]
[Result "0-1"]
[Round "01"]
[TimeControl "180+2"]
[Date "2023.04.18"]
[WhiteClock "0:01:15"]
[BlackClock "0:01:00"]

1. e4 {[%clk 0:02:59]}  c5 {[%clk 0:02:59]} 2. d3 {[%clk 0:02:58]}  d5 {[%clk 0:02:59]} 3. Nd2 {[%clk 0:02:56]}  d4 {[%clk 0:02:57]} 4. g3 {[%clk 0:02:55]}  Nc6 {[%clk 0:02:58]} 5. Bg2 {[%clk 0:02:55]}  e5 {[%clk 0:02:59]} 6. Ngf3 {[%clk 0:02:55]}  Bd6 {[%clk 0:03:00]} 7. O-O {[%clk 0:02:55]}  Nf6 {[%clk 0:03:00]} 8. c3 {[%clk 0:02:55]}  O-O {[%clk 0:03:00]} 9. cxd4 {[%clk 0:02:55]}  cxd4 {[%clk 0:03:01]} 10. Ne1 {[%clk 0:02:52]}  Bg4 {[%clk 0:02:58]} 11. f3 {[%clk 0:02:51]}  Bh5 {[%clk 0:02:53]} 12. a3 {[%clk 0:02:49]}  b5 {[%clk 0:02:52]} 13. b4 {[%clk 0:02:49]}  a5 {[%clk 0:02:51]} 14. bxa5 {[%clk 0:02:44]}  Nxa5 {[%clk 0:02:47]} 15. a4 {[%clk 0:02:39]}  b4 {[%clk 0:02:43]} 16. Nb3 {[%clk 0:02:38]}  Nxb3 {[%clk 0:02:43]} 17. Qxb3 {[%clk 0:02:38]}  Qa5 {[%clk 0:02:42]} 18. Bd2 {[%clk 0:02:36]}  Rfc8 {[%clk 0:02:42]} 19. Nc2 {[%clk 0:02:36]}  Rab8 {[%clk 0:02:41]} 20. Rfb1 {[%clk 0:02:35]}  Nd7 {[%clk 0:02:31]} 21. Nxb4 {[%clk 0:02:28]}  Nc5 {[%clk 0:02:10]} 22. Qd5 {[%clk 0:02:26]}  Qc7 {[%clk 0:01:55]} 23. Rc1 {[%clk 0:02:23]}  Qd7 {[%clk 0:01:41]} 24. a5 {[%clk 0:01:47]}  Kh8 {[%clk 0:01:17]} 25. a6 {[%clk 0:01:43]}  f6 {[%clk 0:01:18]} 26. a7 {[%clk 0:01:43]}  Ra8 {[%clk 0:01:17]} 27. Qa2 {[%clk 0:01:27]}  Bf7 {[%clk 0:01:15]} 28. Qb2 {[%clk 0:01:20]}  Nb3 {[%clk 0:01:11]} 29. Rxc8+ {[%clk 0:01:19]}  Qxc8 {[%clk 0:01:12]} 30. Ra6 {[%clk 0:01:16]}  Bxb4 {[%clk 0:01:08]} 31. Rb6 {[%clk 0:01:15]}  Bxd2 {[%clk 0:01:03]} 32. Rxb3 {[%clk 0:01:14]}  Bxb3 {[%clk 0:01:02]} 33. Qxb3 {[%clk 0:01:15]}  Be3+ {[%clk 0:01:00]} 0-1


[Site "https://www.chess.com"]

[Event "Titled Tuesday Blitz April 18 Late 2023"]
[White "Peatman, Carter"]
[Black "Prohaszka, Peter"]
[WhiteFideId "2096480"]
[BlackFideId "726265"]
[WhiteElo "2003"]
[BlackElo "2626"]
[Result "0-1"]
[Round "01"]
[TimeControl "180+2"]
[Date "2023.04.18"]
[WhiteClock "0:00:03"]
[BlackClock "0:00:06"]

1. d4 {[%clk 0:02:38]}  d5 {[%clk 0:02:56]} 2. Bf4 {[%clk 0:02:37]}  c5 {[%clk 0:02:49]} 3. e3 {[%clk 0:02:33]}  cxd4 {[%clk 0:02:49]} 4. exd4 {[%clk 0:02:33]}  Nc6 {[%clk 0:02:50]} 5. c3 {[%clk 0:02:32]}  Nf6 {[%clk 0:02:50]} 6. Bd3 {[%clk 0:02:31]}  Bg4 {[%clk 0:02:49]} 7. Qb3 {[%clk 0:02:31]}  Qd7 {[%clk 0:02:49]} 8. Nd2 {[%clk 0:02:28]}  e6 {[%clk 0:02:50]} 9. Ngf3 {[%clk 0:02:27]}  Bd6 {[%clk 0:02:50]} 10. Bxd6 {[%clk 0:02:09]}  Qxd6 {[%clk 0:02:51]} 11. Qxb7 {[%clk 0:02:09]}  Rb8 {[%clk 0:02:51]} 12. Qa6 {[%clk 0:02:09]}  O-O {[%clk 0:02:18]} 13. Rb1 {[%clk 0:01:53]}  Rb6 {[%clk 0:02:16]} 14. Qa4 {[%clk 0:01:49]}  Rfb8 {[%clk 0:02:04]} 15. Qc2 {[%clk 0:01:50]}  e5 {[%clk 0:01:57]} 16. dxe5 {[%clk 0:01:22]}  Nxe5 {[%clk 0:01:58]} 17. O-O {[%clk 0:00:44]}  Nxf3+ {[%clk 0:01:52]} 18. Nxf3 {[%clk 0:00:45]}  Bxf3 {[%clk 0:01:52]} 19. gxf3 {[%clk 0:00:46]}  Qf4 {[%clk 0:01:44]} 20. Rfe1 {[%clk 0:00:41]}  Qxf3 {[%clk 0:00:50]} 21. Re3 {[%clk 0:00:41]}  Qf4 {[%clk 0:00:49]} 22. Rg3 {[%clk 0:00:26]}  Ng4 {[%clk 0:00:39]} 23. Bxh7+ {[%clk 0:00:26]}  Kh8 {[%clk 0:00:12]} 24. Bf5 {[%clk 0:00:14]}  Ne5 {[%clk 0:00:10]} 25. Kg2 {[%clk 0:00:14]}  Rf6 {[%clk 0:00:08]} 26. Rh3+ {[%clk 0:00:07]}  Kg8 {[%clk 0:00:08]} 27. Bh7+ {[%clk 0:00:04]}  Kf8 {[%clk 0:00:08]} 28. Qe2 {[%clk 0:00:03]}  g6 {[%clk 0:00:06]} 29. Re1 {[%clk 0:00:02]}  Re8 {[%clk 0:00:07]} 30. Kh1 {[%clk 0:00:02]}  Rf5 {[%clk 0:00:06]} 31. Kg2 {[%clk 0:00:02]}  Kg7 {[%clk 0:00:07]} 32. Rg3 {[%clk 0:00:03]}  Kxh7 {[%clk 0:00:07]} 33. Rh3+ {[%clk 0:00:03]}  Kg7 {[%clk 0:00:07]} 34. Rg3 {[%clk 0:00:04]}  Rg5 {[%clk 0:00:07]} 35. Qf1 {[%clk 0:00:03]}  Re6 {[%clk 0:00:07]} 36. Qe2 {[%clk 0:00:03]}  Rxg3+ {[%clk 0:00:06]} 37. hxg3 {[%clk 0:00:02]}  Qf6 {[%clk 0:00:07]} 38. Qd2 {[%clk 0:00:03]}  Nc6 {[%clk 0:00:06]} 0-1


[Site "https://www.chess.com"]

[Event "Titled Tuesday Blitz April 18 Late 2023"]
[White "Korchmar, Vasiliy"]
[Black "crosky"]
[WhiteFideId "24131750"]
[WhiteElo "2370"]
[BlackElo "2348"]
[Result "1-0"]
[Round "01"]
[TimeControl "180+2"]
[Date "2023.04.18"]
[WhiteClock "0:01:48"]
[BlackClock "0:00:49"]

1. e4 {[%clk 0:03:00]}  c6 {[%clk 0:02:58]} 2. d4 {[%clk 0:02:59]}  d5 {[%clk 0:02:59]} 3. e5 {[%clk 0:03:00]}  Bf5 {[%clk 0:02:59]} 4. Nd2 {[%clk 0:03:00]}  e6 {[%clk 0:02:59]} 5. Nb3 {[%clk 0:03:00]}  Nd7 {[%clk 0:02:58]} 6. Nf3 {[%clk 0:03:01]}  h6 {[%clk 0:02:58]} 7. Be2 {[%clk 0:03:01]}  Ne7 {[%clk 0:02:58]} 8. O-O {[%clk 0:03:02]}  Qc7 {[%clk 0:02:56]} 9. a4 {[%clk 0:03:02]}  g5 {[%clk 0:02:51]} 10. a5 {[%clk 0:02:54]}  Bg7 {[%clk 0:02:47]} 11. c4 {[%clk 0:02:48]}  dxc4 {[%clk 0:02:37]} 12. Bxc4 {[%clk 0:02:49]}  Nd5 {[%clk 0:02:37]} 13. Bd2 {[%clk 0:02:39]}  O-O {[%clk 0:02:34]} 14. Rc1 {[%clk 0:02:35]}  Qd8 {[%clk 0:02:29]} 15. Qe2 {[%clk 0:02:30]}  Qe7 {[%clk 0:02:29]} 16. h3 {[%clk 0:02:27]}  Rad8 {[%clk 0:02:26]} 17. Rfe1 {[%clk 0:02:23]}  Kh8 {[%clk 0:02:22]} 18. Nh2 {[%clk 0:02:21]}  Bh7 {[%clk 0:02:21]} 19. Nf1 {[%clk 0:02:20]}  Rg8 {[%clk 0:02:16]} 20. Ng3 {[%clk 0:02:21]}  Nf4 {[%clk 0:02:01]} 21. Qf3 {[%clk 0:02:11]}  c5 {[%clk 0:01:41]} 22. Bxf4 {[%clk 0:02:02]}  gxf4 {[%clk 0:01:42]} 23. Qxf4 {[%clk 0:02:03]}  cxd4 {[%clk 0:01:41]} 24. Nxd4 {[%clk 0:02:00]}  Qb4 {[%clk 0:00:56]} 25. a6 {[%clk 0:01:52]}  Nxe5 {[%clk 0:00:54]} 26. Rxe5 {[%clk 0:01:48]}  Rxd4 {[%clk 0:00:49]} 1-0


[Site "https://www.chess.com"]

[Event "Titled Tuesday Blitz April 18 Late 2023"]
[White "Fuzesabonyilaci"]
[Black "Bilych, Olexiy"]
[BlackFideId "14156504"]
[WhiteElo "2344"]
[BlackElo "2320"]
[Result "0-1"]
[Round "01"]
[TimeControl "180+2"]
[Date "2023.04.18"]
[WhiteClock "0:00:10"]
[BlackClock "0:00:28"]

1. e4 {[%clk 0:02:58]}  c5 {[%clk 0:02:59]} 2. Nf3 {[%clk 0:02:58]}  d6 {[%clk 0:02:59]} 3. d4 {[%clk 0:02:56]}  cxd4 {[%clk 0:03:00]} 4. Nxd4 {[%clk 0:02:56]}  Nf6 {[%clk 0:03:00]} 5. Nc3 {[%clk 0:02:57]}  a6 {[%clk 0:03:00]} 6. Be3 {[%clk 0:02:57]}  e5 {[%clk 0:02:57]} 7. Nb3 {[%clk 0:02:57]}  Be6 {[%clk 0:02:55]} 8. Qd2 {[%clk 0:02:57]}  Nbd7 {[%clk 0:02:52]} 9. O-O-O {[%clk 0:02:57]}  Be7 {[%clk 0:02:30]} 10. f4 {[%clk 0:02:55]}  Rc8 {[%clk 0:02:26]} 11. f5 {[%clk 0:02:54]}  Bc4 {[%clk 0:02:25]} 12. Kb1 {[%clk 0:02:50]}  b5 {[%clk 0:02:23]} 13. Bxc4 {[%clk 0:02:14]}  Rxc4 {[%clk 0:02:17]} 14. Qd3 {[%clk 0:02:13]}  Qc7 {[%clk 0:01:58]} 15. Nd2 {[%clk 0:02:08]}  Rc6 {[%clk 0:01:55]} 16. Nd5 {[%clk 0:02:04]}  Qb7 {[%clk 0:01:48]} 17. Nb3 {[%clk 0:01:34]}  Nxd5 {[%clk 0:01:35]} 18. exd5 {[%clk 0:01:35]}  Rc8 {[%clk 0:01:31]} 19. g4 {[%clk 0:01:22]}  Qc7 {[%clk 0:01:26]} 20. g5 {[%clk 0:01:18]}  Qc4 {[%clk 0:01:24]} 21. Qd2 {[%clk 0:01:13]}  Bd8 {[%clk 0:01:05]} 22. Rhg1 {[%clk 0:00:34]}  a5 {[%clk 0:01:01]} 23. Nc1 {[%clk 0:00:32]}  a4 {[%clk 0:00:57]} 24. g6 {[%clk 0:00:32]}  hxg6 {[%clk 0:00:55]} 25. fxg6 {[%clk 0:00:33]}  f6 {[%clk 0:00:50]} 26. Ne2 {[%clk 0:00:23]}  Rxh2 {[%clk 0:00:38]} 27. Rde1 {[%clk 0:00:23]}  Ba5 {[%clk 0:00:34]} 28. Qxa5 {[%clk 0:00:17]}  Rxe2 {[%clk 0:00:33]} 29. Bd2 {[%clk 0:00:09]}  Qxc2+ {[%clk 0:00:32]} 30. Ka1 {[%clk 0:00:10]}  Qxd2 {[%clk 0:00:29]} 31. Rb1 {[%clk 0:00:10]}  Qxa5 {[%clk 0:00:28]} 0-1


[Site "https://www.chess.com"]